[Event "Moscow Youth U19 2019"]
[Site "Moscow"]
[Date "2019.11.23"]
[Round "6.7"]
[White "Sekoyan, Vachagan"]
[Black "Usov, Aleksandr E."]
[Result "0-1"]
[ECO "D10"]
[WhiteElo "2084"]
[BlackElo "1930"]
[Annotator "NA"]
[PlyCount "108"]
[EventDate "2019.11.18"]
[EventType "swiss"]
[EventCountry "RUS"]
[SourceTitle "playchess.com"]
[Source "ChessBase"]
[SourceQuality "1"]
[TimeControl "5400+30"]

1. d4 {[%emt 0:00:00]} d5 {[%emt 0:18:55]} 2. c4 {[%emt 0:00:00]} c6 {[%emt 0:00:03]} 3. cxd5 {[%emt 0:00:00]} cxd5 {[%emt 0:00:04]} 4. Bf4 {[%emt 0:00:00]} Nc6 {[%emt 0:00:07]} 5. e3 {[%emt 0:00:00]} Nf6 {[%emt 0:00:30]} 6. Nc3 {[%emt 0:01:05]} Bg4 {[%emt 0:00:39]} 7. Qb3 {[%emt 0:03:37]} Qd7 {[%emt 0:00:10]} 8. Bd3 {[%emt 0:05:38]} e6 {[%emt 0:00:23]} 9. Nge2 {[%emt 0:00:34]} Be7 {[%emt 0:01:58]} 10. O-O {[%emt 0:02:10]} O-O {[%emt 0:00:45]} 11. Rac1 {[%emt 0:10:08]} Bxe2 {[%emt 0:05:39]} 12. Bxe2 {[%emt 0:05:27]} Ne8 {[%emt 0:00:16]} 13. Na4 {[%emt 0:04:33]} g5 {[%emt 0:04:03]} 14. Bg3 {[%emt 0:00:24]} f5 {[%emt 0:00:34]} 15. Be5 {[%emt 0:09:14]} Bd6 {[%emt 0:05:37]} 16. Bxd6 {[%emt 0:11:30]} Nxd6 {[%emt 0:00:13]} 17. Nc5 {[%emt 0:00:04]} Qe7 {[%emt 0:00:09]} 18. Qa4 {[%emt 0:10:07]} Rfc8 {[%emt 0:06:41]} 19. Rc2 {[%emt 0:06:10]} a6 {[%emt 0:07:48]} 20. Qa3 {[%emt 0:05:43]} b5 {[%emt 0:16:25]} 21. Nxa6 {[%emt 0:06:52]} Nxd4 {[%emt 0:00:10]} 22. Rxc8+ {[%emt 0:02:07]} Nxc8 {[%emt 0:00:07]} 23. exd4 {[%emt 0:01:03]} Qxa3 {[%emt 0:00:06]} 24. bxa3 {[%emt 0:00:02]} Rxa6 {[%emt 0:00:12]} 25. Bxb5 {[%emt 0:00:15]} Rxa3 {[%emt 0:00:07]} 26. Bd7 {[%emt 0:00:37]} Ne7 {[%emt 0:00:09]} 27. Bxe6+ {[%emt 0:04:21]} Kg7 {[%emt 0:00:12]} 28. Ra1 {[%emt 0:02:41]} Ra7 {[%emt 0:01:12]} 29. g4 {[%emt 0:00:16]} f4 {[%emt 0:00:16]} 30. Re1 {[%emt 0:02:22]} Rxa2 {[%emt 0:02:45]} 31. Rd1 {[%emt 0:07:09]} Ra7 {[%emt 0:00:37]} 32. h3 {[%emt 0:00:57]} Kf6 {[%emt 0:00:16]} 33. Re1 {[%emt 0:00:00]} Ra4 {[%emt 0:00:38]} 34. Bd7 {[%emt 0:01:54]} Rxd4 {[%emt 0:00:12]} 35. Re6+ {[%emt 0:00:00]} Kf7 {[%emt 0:00:05]} 36. h4 {[%emt 0:00:11]} gxh4 {[%emt 0:03:03]} 37. Rh6 {[%emt 0:00:08]} Ng6 {[%emt 0:01:19]} 38. Rxh7+ {[%emt 0:00:20]} Kf6 {[%emt 0:00:06]} 39. Bf5 {[%emt 0:00:19]} Ne5 {[%emt 0:01:14]} 40. Rh6+ {[%emt 0:00:33]} Kf7 {[%emt 0:02:08]} 41. Kg2 {[%emt 0:01:15]} f3+ {[%emt 0:02:13]} 42. Kh3 {[%emt 0:00:28]} Rd2 {[%emt 0:01:17]} 43. Rh7+ {[%emt 0:00:09]} Kf6 {[%emt 0:01:08]} 44. Rh6+ {[%emt 0:00:15]} Kg5 {[%emt 0:00:04]} 45. Rh5+ {[%emt 0:00:17]} Kf4 {[%emt 0:00:23]} 46. Bh7 {[%emt 0:00:31]} Rxf2 {[%emt 0:01:07]} 47. Rf5+ {[%emt 0:01:08]} Ke4 {[%emt 0:00:03]} 48. Rh5+ {[%emt 0:00:43]} Kd4 {[%emt 0:00:14]} 49. Rxh4 {[%emt 0:00:10]} Rg2 {[%emt 0:00:13]} 50. g5+ {[%emt 0:00:29]} Ke3 {[%emt 0:00:08]} 51. Ra4 {[%emt 0:01:02]} Rxg5 {[%emt 0:00:27]} 52. Ra3+ {[%emt 0:00:02]} Kf4 {[%emt 0:00:09]} 53. Bg6 {[%emt 0:00:22]} Rg3+ {[%emt 0:00:16]} 54. Kh2 {[%emt 0:00:05]} Ng4+ {[%emt 0:00:05]} 0-1

[Event "Moscow Youth U19 2019"]
[Site "Moscow"]
[Date "2019.11.23"]
[Round "6.8"]
[White "Zavialov, Nikita A."]
[Black "Miroshnik, Ekaterina"]
[Result "0-1"]
[ECO "C41"]
[WhiteElo "2066"]
[BlackElo "2127"]
[Annotator "NA"]
[PlyCount "72"]
[EventDate "2019.11.18"]
[EventType "swiss"]
[EventCountry "RUS"]
[SourceTitle "playchess.com"]
[Source "ChessBase"]
[SourceQuality "1"]
[TimeControl "5400+30"]

1. e4 {[%emt 0:00:00]} d6 {[%emt 0:00:00]} 2. Nf3 {[%emt 0:00:00]} Nf6 {[%emt 0:00:37]} 3. Nc3 {[%emt 0:00:00]} e5 {[%emt 0:00:13]} 4. d4 {[%emt 1:32:00]} Nbd7 {[%emt 0:00:04]} 5. a4 {[%emt 0:09:25]} Be7 {[%emt 0:00:33]} 6. a5 {[%emt 0:01:51]} O-O {[%emt 0:01:01]} 7. Be2 {[%emt 0:06:37]} c6 {[%emt 0:01:59]} 8. O-O {[%emt 0:10:12]} Re8 {[%emt 0:03:46]} 9. Re1 {[%emt 0:24:50]} Bf8 {[%emt 1:26:17]} 10. Bc4 {[%emt 0:03:21]} h6 {[%emt 0:00:09]} 11. d5 {[%emt 0:01:29]} Qc7 {[%emt 0:14:42]} 12. Ra3 {[%emt 0:09:52]} b5 {[%emt 0:05:16]} 13. dxc6 {[%emt 0:06:59]} bxc4 {[%emt 0:00:13]} 14. cxd7 {[%emt 0:00:04]} Bxd7 {[%emt 0:00:20]} 15. Nd5 {[%emt 0:03:26]} Nxd5 {[%emt 0:01:22]} 16. exd5 {[%emt 0:00:08]} Rab8 {[%emt 0:12:18]} 17. Nh4 {[%emt 0:05:28]} Rb5 {[%emt 0:09:30]} 18. Qh5 {[%emt 0:10:15]} Rxd5 {[%emt 0:20:55]} 19. Bxh6 {[%emt 0:00:27]} Rxa5 {[%emt 0:04:06]} 20. Rea1 {[%emt 0:01:58]} c3 {[%emt 0:04:58]} 21. Rxa5 {[%emt 0:02:24]} cxb2 {[%emt 0:00:07]} 22. h3 {[%emt 0:00:56]} Qxa5 {[%emt 0:01:12]} 23. Rxa5 {[%emt 0:00:18]} b1=Q+ {[%emt 0:00:05]} 24. Kh2 {[%emt 0:00:09]} gxh6 {[%emt 0:02:17]} 25. Ra3 {[%emt 0:00:48]} Bg7 {[%emt 0:01:07]} 26. Nf5 {[%emt 0:00:42]} Bxf5 {[%emt 0:00:33]} 27. Qxf5 {[%emt 0:00:03]} Qb6 {[%emt 0:01:13]} 28. Rf3 {[%emt 0:00:26]} Qc7 {[%emt 0:01:29]} 29. Qe4 {[%emt 0:00:43]} Qd7 {[%emt 0:00:37]} 30. c4 {[%emt 0:00:19]} Qe6 {[%emt 0:00:21]} 31. Qb7 {[%emt 0:00:24]} Qxc4 {[%emt 0:12:59]} 32. Qxa7 {[%emt 0:01:45]} Qe6 {[%emt 0:00:04]} 33. Rg3 {[%emt 0:00:25]} Kh8 {[%emt 0:00:08]} 34. Rf3 {[%emt 0:00:22]} Rf8 {[%emt 0:00:26]} 35. Rg3 {[%emt 0:00:44]} e4 {[%emt 0:00:08]} 36. Qc7 {[%emt 0:00:34]} Be5 {[%emt 0:00:14]} 0-1

[Event "Moscow Youth U19 2019"]
[Site "Moscow"]
[Date "2019.11.23"]
[Round "6.9"]
[White "Nikolaev, Daniil"]
[Black "Talyzin, Valeriy"]
[Result "1-0"]
[ECO "B09"]
[WhiteElo "1867"]
[BlackElo "1829"]
[Annotator "NA"]
[PlyCount "131"]
[EventDate "2019.11.18"]
[EventType "swiss"]
[EventCountry "RUS"]
[SourceTitle "playchess.com"]
[Source "ChessBase"]
[SourceQuality "1"]
[TimeControl "5400+30"]

1. e4 {[%emt 0:00:00]} g6 {[%emt 0:00:00]} 2. d4 {[%emt 0:00:00]} Bg7 {[%emt 0:00:00]} 3. Nc3 {[%emt 1:31:30]} d6 {[%emt 0:00:00]} 4. f4 {[%emt 0:00:00]} Nf6 {[%emt 0:00:00]} 5. Nf3 {[%emt 0:00:23]} O-O {[%emt 0:00:01]} 6. Be3 {[%emt 0:00:20]} c6 {[%emt 0:00:07]} 7. Qd2 {[%emt 0:03:31]} b5 {[%emt 0:00:16]} 8. e5 {[%emt 0:01:16]} dxe5 {[%emt 0:02:16]} 9. dxe5 {[%emt 0:00:21]} Qxd2+ {[%emt 0:01:38]} 10. Nxd2 {[%emt 0:02:27]} Nfd7 {[%emt 0:01:48]} 11. Nce4 {[%emt 0:04:07]} Nb6 {[%emt 0:00:19]} 12. a4 {[%emt 0:37:43]} bxa4 {[%emt 0:07:50]} 13. Bc5 {[%emt 0:10:22]} Nd5 {[%emt 1:22:15]} 14. g3 {[%emt 0:01:47]} Nd7 {[%emt 0:01:32]} 15. Rxa4 {[%emt 0:05:11]} Nxc5 {[%emt 0:03:05]} 16. Nxc5 {[%emt 0:00:04]} Ne3 {[%emt 0:00:04]} 17. Kf2 {[%emt 0:01:31]} Ng4+ {[%emt 0:11:20]} 18. Kf3 {[%emt 0:04:54]} Rd8 {[%emt 0:03:26]} 19. Bd3 {[%emt 0:02:30]} Nh6 {[%emt 0:00:31]} 20. h3 {[%emt 0:00:42]} Nf5 {[%emt 0:00:08]} 21. c3 {[%emt 0:02:22]} f6 {[%emt 0:54:34]} 22. g4 {[%emt 0:03:12]} Nh4+ {[%emt 0:02:32]} 23. Kg3 {[%emt 0:00:55]} g5 {[%emt 0:02:13]} 24. fxg5 {[%emt 0:01:40]} fxg5 {[%emt 0:00:10]} 25. Re1 {[%emt 0:00:23]} Be6 {[%emt 0:06:26]} 26. Nf3 {[%emt 0:03:03]} Nxf3 {[%emt 0:00:35]} 27. Kxf3 {[%emt 0:00:07]} Rf8+ {[%emt 0:00:07]} 28. Kg2 {[%emt 0:01:47]} Bd5+ {[%emt 0:00:28]} 29. Be4 {[%emt 0:00:17]} Rad8 {[%emt 0:10:23]} 30. e6 {[%emt 0:07:33]} Rf4 {[%emt 0:03:48]} 31. Rxa7 {[%emt 0:02:29]} Bf6 {[%emt 0:01:05]} 32. Bxd5 {[%emt 0:05:03]} Rxd5 {[%emt 0:00:21]} 33. Ne4 {[%emt 0:00:04]} Kg7 {[%emt 0:02:44]} 34. Raa1 {[%emt 0:03:04]} Be5 {[%emt 0:12:20]} 35. Ra7 {[%emt 0:00:27]} Bf6 {[%emt 0:01:15]} 36. Raa1 {[%emt 0:00:03]} Rb5 {[%emt 0:00:37]} 37. b4 {[%emt 0:00:52]} Rd5 {[%emt 0:00:44]} 38. Rac1 {[%emt 0:00:43]} Be5 {[%emt 0:00:25]} 39. Rc2 {[%emt 0:00:33]} Bc7 {[%emt 0:00:22]} 40. Ng3 {[%emt 0:00:48]} c5 {[%emt 0:02:59]} 41. Nh5+ {[%emt 0:00:16]} Kg6 {[%emt 0:01:03]} 42. Nxf4+ {[%emt 0:00:04]} Bxf4 {[%emt 0:00:06]} 43. c4 {[%emt 0:01:50]} Rd3 {[%emt 0:00:13]} 44. bxc5 {[%emt 0:00:00]} Rg3+ {[%emt 0:00:08]} 45. Kf1 {[%emt 0:00:00]} Rxh3 {[%emt 0:00:05]} 46. Re4 {[%emt 0:00:31]} Rh1+ {[%emt 0:00:23]} 47. Ke2 {[%emt 0:00:08]} Rh2+ {[%emt 0:01:06]} 48. Kd3 {[%emt 0:00:05]} Rh3+ {[%emt 0:00:11]} 49. Kd4 {[%emt 0:00:23]} Rh1 {[%emt 0:00:27]} 50. Kd5 {[%emt 0:02:23]} h5 {[%emt 0:00:45]} 51. Kc6 {[%emt 0:01:35]} hxg4 {[%emt 0:00:10]} 52. Kd7 {[%emt 0:00:21]} Kf6 {[%emt 0:02:41]} 53. c6 {[%emt 0:00:17]} Rd1+ {[%emt 0:00:05]} 54. Kc8 {[%emt 0:00:50]} g3 {[%emt 0:02:19]} 55. c7 {[%emt 0:00:37]} Rb1 {[%emt 0:02:26]} 56. c5 {[%emt 0:00:29]} Kf5 {[%emt 0:01:55]} 57. Ree2 {[%emt 0:00:06]} Kf6 {[%emt 0:00:10]} 58. Ra2 {[%emt 0:00:48]} Rb5 {[%emt 0:00:08]} 59. c6 {[%emt 0:00:29]} Rb3 {[%emt 0:00:26]} 60. Rab2 {[%emt 0:00:19]} Rc3 {[%emt 0:01:01]} 61. Kb7 {[%emt 0:01:29]} Bxc7 {[%emt 0:00:11]} 62. Kxc7 {[%emt 0:01:42]} g2 {[%emt 0:00:03]} 63. Rxg2 {[%emt 0:00:07]} Kxe6 {[%emt 0:00:10]} 64. Rxg5 {[%emt 0:00:06]} Kf6 {[%emt 0:00:15]} 65. Rgg2 {[%emt 0:00:06]} e5 {[%emt 0:00:04]} 66. Kb7 {[%emt 0:00:11]} 1-0

[Event "Moscow Youth U19 2019"]
[Site "Moscow"]
[Date "2019.11.23"]
[Round "6.10"]
[White "Kozhukhov, Alexandr"]
[Black "Agashin, Alexandr"]
[Result "1/2-1/2"]
[ECO "E68"]
[WhiteElo "1627"]
[BlackElo "1546"]
[Annotator "NA"]
[PlyCount "102"]
[EventDate "2019.11.18"]
[EventType "swiss"]
[EventCountry "RUS"]
[SourceTitle "playchess.com"]
[Source "ChessBase"]
[SourceQuality "1"]
[TimeControl "5400+30"]

1. d4 {[%emt 0:02:51]} Nf6 {[%emt 0:00:00]} 2. c4 {[%emt 0:00:08]} g6 {[%emt 0:00:00]} 3. Nf3 {[%emt 0:00:06]} Bg7 {[%emt 0:00:00]} 4. g3 {[%emt 0:00:23]} d6 {[%emt 0:02:22]} 5. Bg2 {[%emt 0:00:31]} Nbd7 {[%emt 0:01:12]} 6. O-O {[%emt 0:00:37]} O-O {[%emt 0:00:27]} 7. Nc3 {[%emt 0:00:14]} c6 {[%emt 0:05:11]} 8. e4 {[%emt 0:01:01]} e5 {[%emt 0:01:10]} 9. Re1 {[%emt 0:01:28]} Ng4 {[%emt 0:08:59]} 10. h3 {[%emt 0:03:25]} exd4 {[%emt 0:01:33]} 11. Nxd4 {[%emt 0:00:54]} Nge5 {[%emt 0:03:00]} 12. b3 {[%emt 0:00:36]} Nc5 {[%emt 0:04:05]} 13. Be3 {[%emt 0:03:33]} f5 {[%emt 0:11:24]} 14. exf5 {[%emt 1:21:13]} Bxf5 {[%emt 0:03:53]} 15. g4 {[%emt 0:14:05]} Bd7 {[%emt 0:09:02]} 16. Qe2 {[%emt 0:49:32]} Qh4 {[%emt 0:09:24]} 17. Rad1 {[%emt 0:16:38]} Rae8 {[%emt 0:09:58]} 18. Qd2 {[%emt 0:04:32]} h6 {[%emt 0:12:14]} 19. f4 {[%emt 0:02:27]} Ned3 {[%emt 0:01:05]} 20. Rf1 {[%emt 0:01:19]} Re7 {[%emt 0:09:41]} 21. Nf3 {[%emt 0:01:08]} Qf6 {[%emt 0:01:46]} 22. Na4 {[%emt 0:03:39]} Rfe8 {[%emt 0:02:12]} 23. Nxc5 {[%emt 0:01:37]} Nxc5 {[%emt 0:01:03]} 24. Bd4 {[%emt 0:00:52]} Qf7 {[%emt 0:00:35]} 25. Bxg7 {[%emt 0:00:08]} Qxg7 {[%emt 0:00:09]} 26. Qxd6 {[%emt 0:00:29]} Ne4 {[%emt 0:00:18]} 27. Qd4 {[%emt 0:00:26]} Nc3 {[%emt 0:01:11]} 28. Qxg7+ {[%emt 0:00:27]} Kxg7 {[%emt 0:00:05]} 29. Rd6 {[%emt 0:00:16]} Ne2+ {[%emt 0:00:24]} 30. Kh2 {[%emt 0:02:00]} Nxf4 {[%emt 0:00:13]} 31. Ne5 {[%emt 0:02:23]} Nxg2 {[%emt 0:00:45]} 32. Nxd7 {[%emt 0:12:52]} Re2 {[%emt 0:00:44]} 33. Kg1 {[%emt 0:01:36]} Ne3 {[%emt 0:00:43]} 34. Rff6 {[%emt 0:00:20]} Re1+ {[%emt 0:00:49]} 35. Kh2 {[%emt 0:03:12]} Nf1+ {[%emt 0:01:10]} 36. Kg2 {[%emt 0:00:52]} Ne3+ {[%emt 0:00:16]} 37. Kf3 {[%emt 0:01:29]} Rf1+ {[%emt 0:00:09]} 38. Ke2 {[%emt 0:00:27]} Rxf6 {[%emt 0:00:08]} 39. Nxf6 {[%emt 0:00:04]} Re7 {[%emt 0:00:20]} 40. Kf3 {[%emt 0:01:08]} Nxc4 {[%emt 0:00:54]} 41. bxc4 {[%emt 0:00:19]} Rf7 {[%emt 0:00:08]} 42. Ke4 {[%emt 0:00:46]} Rxf6 {[%emt 0:00:04]} 43. Rd7+ {[%emt 0:00:11]} Rf7 {[%emt 0:02:44]} 44. Rd8 {[%emt 0:00:05]} Kf6 {[%emt 0:00:22]} 45. h4 {[%emt 0:00:28]} Re7+ {[%emt 0:00:36]} 46. Kf3 {[%emt 0:00:29]} h5 {[%emt 0:00:28]} 47. gxh5 {[%emt 0:01:13]} gxh5 {[%emt 0:00:03]} 48. Rd6+ {[%emt 0:01:58]} Re6 {[%emt 0:00:18]} 49. Rd7 {[%emt 0:00:06]} Re7 {[%emt 0:00:13]} 50. Rd6+ {[%emt 0:00:06]} Re6 {[%emt 0:00:10]} 51. Rd7 {[%emt 0:00:05]} Re7 {[%emt 0:00:04]} 1/2-1/2

[Event "Moscow Youth U19 2019"]
[Site "Moscow"]
[Date "2019.11.24"]
[Round "7.1"]
[White "Fedorov, Nikita"]
[Black "Makarian, Rudik"]
[Result "0-1"]
[ECO "A45"]
[WhiteElo "2133"]
[BlackElo "2405"]
[Annotator "ChessBase"]
[PlyCount "90"]
[EventDate "2019.11.18"]
[EventType "swiss"]
[EventCountry "RUS"]
[SourceTitle "playchess.com"]
[Source "ChessBase"]
[SourceQuality "1"]
[TimeControl "5400+30"]

1. d4 {[%emt 0:00:00]} Nf6 {[%emt 0:02:03]} 2. Bf4 {[%emt 0:00:00]} c5 {[%emt 0:00:28]} 3. e3 {[%emt 0:00:00]} Nd5 {[%emt 0:00:04]} 4. Bg3 {[%emt 0:11:22]} Qb6 {[%emt 0:00:58]} 5. b3 {[%emt 0:03:49]} cxd4 {[%emt 0:00:06]} 6. Qxd4 {[%emt 0:01:50]} Qxd4 {[%emt 0:00:31]} 7. exd4 {[%emt 0:00:03]} Nc6 {[%emt 0:01:05]} 8. c3 {[%emt 0:01:58]} g6 {[%emt 0:00:33]} 9. Bc4 {[%emt 0:03:00]} Nb6 {[%emt 0:00:26]} 10. Bd3 {[%emt 0:00:17]} Bg7 {[%emt 0:00:14]} 11. Nf3 {[%emt 0:02:47]} O-O {[%emt 0:01:13]} 12. O-O {[%emt 0:07:51]} d6 {[%emt 0:06:38]} 13. Re1 {[%emt 0:06:27]} e5 {[%emt 0:01:05]} 14. Na3 {[%emt 0:07:29]} Rd8 {[%emt 0:11:42]} 15. Rad1 {[%emt 0:11:55]} Bg4 {[%emt 0:05:34]} 16. Be2 {[%emt 0:02:23]} e4 {[%emt 0:08:42]} 17. Nd2 {[%emt 0:01:30]} Bxe2 {[%emt 0:00:07]} 18. Rxe2 {[%emt 0:00:02]} d5 {[%emt 0:00:49]} 19. Bf4 {[%emt 0:06:47]} Rac8 {[%emt 0:01:12]} 20. Nb5 {[%emt 0:02:38]} Rd7 {[%emt 0:00:57]} 21. Nd6 {[%emt 0:06:53]} Rcd8 {[%emt 0:00:33]} 22. Nb5 {[%emt 0:00:07]} a6 {[%emt 0:03:59]} 23. Na3 {[%emt 0:05:47]} f5 {[%emt 0:00:52]} 24. Be3 {[%emt 0:01:21]} Na8 {[%emt 0:01:05]} 25. b4 {[%emt 0:01:07]} Nc7 {[%emt 0:00:50]} 26. Nb3 {[%emt 0:00:45]} b6 {[%emt 0:00:12]} 27. g3 {[%emt 0:02:47]} Bf8 {[%emt 0:01:21]} 28. Nc2 {[%emt 0:00:47]} Nb5 {[%emt 0:01:06]} 29. Bd2 {[%emt 0:00:23]} Nd6 {[%emt 0:02:44]} 30. Ne3 {[%emt 0:00:21]} Nc4 {[%emt 0:00:21]} 31. Nxc4 {[%emt 0:00:15]} dxc4 {[%emt 0:00:02]} 32. Na1 {[%emt 0:06:28]} Bxb4 {[%emt 0:48:28]} 33. Nc2 {[%emt 0:00:55]} Be7 {[%emt 0:00:00]} 34. Ne3 {[%emt 0:00:37]} Nxd4 {[%emt 0:00:00]} 35. cxd4 {[%emt 0:00:43]} Rxd4 {[%emt 0:00:00]} 36. Rb1 {[%emt 0:05:03]} Rxd2 {[%emt 0:00:00]} 37. Rxd2 {[%emt 0:00:25]} Rxd2 {[%emt 0:00:00]} 38. Nxc4 {[%emt 0:00:20]} Rxa2 {[%emt 0:00:00]} 39. Rxb6 {[%emt 0:00:21]} Bc5 {[%emt 0:00:00]} 40. Rb8+ {[%emt 0:00:16]} Kg7 {[%emt 0:00:00]} 41. Rb7+ {[%emt 0:00:19]} Kf6 {[%emt 0:00:00]} 42. Rxh7 {[%emt 0:01:03]} Bxf2+ {[%emt 0:00:00]} 43. Kf1 {[%emt 0:00:17]} Ke6 {[%emt 0:00:00]} 44. Rg7 {[%emt 0:00:30]} Kd5 {[%emt 0:00:00]} 45. Na5 {[%emt 0:00:27]} Bb6 {[%emt 0:00:00]} 0-1

[Event "Moscow Youth U19 2019"]
[Site "Moscow"]
[Date "2019.11.24"]
[Round "7.2"]
[White "Pavlov, Danila"]
[Black "Gurvich, Vitaly"]
[Result "1-0"]
[ECO "C41"]
[WhiteElo "2369"]
[BlackElo "2265"]
[Annotator "ChessBase"]
[PlyCount "95"]
[EventDate "2019.11.18"]
[EventType "swiss"]
[EventCountry "RUS"]
[SourceTitle "playchess.com"]
[Source "ChessBase"]
[SourceQuality "1"]
[TimeControl "5400+30"]

1. e4 {[%emt 0:00:00]} d6 {[%emt 0:00:00]} 2. d4 {[%emt 0:00:00]} Nf6 {[%emt 0:00:00]} 3. Nc3 {[%emt 0:00:00]} e5 {[%emt 0:00:00]} 4. Nf3 {[%emt 0:00:00]} Nbd7 {[%emt 0:00:00]} 5. Rg1 {[%emt 0:00:00]} c6 {[%emt 0:00:00]} 6. g4 {[%emt 0:00:06]} h6 {[%emt 0:00:00]} 7. Be3 {[%emt 0:05:30]} b5 {[%emt 0:02:00]} 8. a3 {[%emt 0:00:34]} Qc7 {[%emt 0:06:52]} 9. h4 {[%emt 0:03:14]} g6 {[%emt 0:03:31]} 10. g5 {[%emt 0:01:51]} hxg5 {[%emt 0:05:35]} 11. hxg5 {[%emt 0:00:07]} Nh5 {[%emt 0:00:04]} 12. d5 {[%emt 0:10:16]} Bb7 {[%emt 0:08:32]} 13. dxc6 {[%emt 0:02:04]} Bxc6 {[%emt 0:00:04]} 14. Bxb5 {[%emt 0:02:22]} Rb8 {[%emt 0:08:06]} 15. Bxc6 {[%emt 0:09:56]} Qxc6 {[%emt 0:01:17]} 16. Qd5 {[%emt 0:00:41]} Qa6 {[%emt 0:04:34]} 17. O-O-O {[%emt 0:03:50]} Be7 {[%emt 0:01:45]} 18. Nd2 {[%emt 0:10:18]} O-O {[%emt 0:04:17]} 19. Nc4 {[%emt 0:03:12]} Rbc8 {[%emt 0:02:14]} 20. Nxd6 {[%emt 0:07:05]} Rxc3 {[%emt 0:00:46]} 21. bxc3 {[%emt 0:00:40]} Nf4 {[%emt 0:02:48]} 22. Bxf4 {[%emt 0:00:43]} exf4 {[%emt 0:00:14]} 23. Nc4 {[%emt 0:10:57]} Nb6 {[%emt 0:04:12]} 24. Nxb6 {[%emt 0:00:19]} axb6 {[%emt 0:01:48]} 25. Qe5 {[%emt 0:09:00]} Bxa3+ {[%emt 0:02:13]} 26. Kb1 {[%emt 0:14:30]} Bc5 {[%emt 0:01:19]} 27. c4 {[%emt 0:00:08]} Ra8 {[%emt 0:05:32]} 28. Qb2 {[%emt 0:05:06]} Bf8 {[%emt 0:00:41]} 29. Rge1 {[%emt 0:00:27]} Qxc4 {[%emt 0:01:10]} 30. e5 {[%emt 0:01:09]} Ra5 {[%emt 0:02:13]} 31. Rd3 {[%emt 0:00:28]} Rc5 {[%emt 0:05:28]} 32. Rb3 {[%emt 0:00:54]} Rc6 {[%emt 0:00:28]} 33. Rxb6 {[%emt 0:00:31]} Re6 {[%emt 0:07:36]} 34. Qb3 {[%emt 0:00:29]} Rxb6 {[%emt 0:02:45]} 35. Qxb6 {[%emt 0:00:01]} Qc3 {[%emt 0:00:39]} 36. Re4 {[%emt 0:01:01]} Qf3 {[%emt 0:00:10]} 37. Rc4 {[%emt 0:00:29]} Qd1+ {[%emt 0:00:43]} 38. Kb2 {[%emt 0:00:27]} Qd5 {[%emt 0:00:22]} 39. Qd4 {[%emt 0:00:29]} Qb7+ {[%emt 0:02:02]} 40. Kc3 {[%emt 0:00:26]} Bg7 {[%emt 0:02:54]} 41. Qxf4 {[%emt 0:00:20]} Qb8 {[%emt 0:00:18]} 42. Re4 {[%emt 0:00:17]} Qc7+ {[%emt 0:00:14]} 43. Kd3 {[%emt 0:00:08]} Qd7+ {[%emt 0:00:26]} 44. Ke2 {[%emt 0:00:17]} Qb5+ {[%emt 0:00:02]} 45. c4 {[%emt 0:00:39]} Qb6 {[%emt 0:01:11]} 46. Kf1 {[%emt 0:00:29]} Qb1+ {[%emt 0:00:05]} 47. Kg2 {[%emt 0:00:04]} Qb6 {[%emt 0:00:11]} 48. Qg4 {[%emt 0:00:28]} 1-0

[Event "Moscow Youth U19 2019"]
[Site "Moscow"]
[Date "2019.11.24"]
[Round "7.3"]
[White "Usov, Aleksandr E."]
[Black "Buniatyan, David"]
[Result "0-1"]
[ECO "B01"]
[WhiteElo "1930"]
[BlackElo "1960"]
[Annotator "NA"]
[PlyCount "80"]
[EventDate "2019.11.18"]
[EventType "swiss"]
[EventCountry "RUS"]
[SourceTitle "playchess.com"]
[Source "ChessBase"]
[SourceQuality "1"]
[TimeControl "5400+30"]

1. e4 {[%emt 0:00:00]} d5 {[%emt 0:00:00]} 2. exd5 {[%emt 0:00:00]} Qxd5 {[%emt 0:00:07]} 3. Nc3 {[%emt 0:00:00]} Qa5 {[%emt 0:00:06]} 4. d4 {[%emt 0:00:00]} Nf6 {[%emt 0:00:09]} 5. Nf3 {[%emt 0:01:05]} Bg4 {[%emt 0:00:18]} 6. h3 {[%emt 0:01:28]} Bh5 {[%emt 0:00:09]} 7. g4 {[%emt 0:01:40]} Bg6 {[%emt 0:00:07]} 8. Ne5 {[%emt 0:00:55]} e6 {[%emt 0:00:07]} 9. h4 {[%emt 0:08:31]} Bb4 {[%emt 0:00:11]} 10. Bd2 {[%emt 0:01:45]} Nbd7 {[%emt 0:00:24]} 11. Nc4 {[%emt 0:07:34]} Qa6 {[%emt 0:00:08]} 12. h5 {[%emt 0:00:06]} Bxc3 {[%emt 0:00:13]} 13. hxg6 {[%emt 0:05:02]} Bxd2+ {[%emt 0:00:16]} 14. Nxd2 {[%emt 0:01:28]} Qa5 {[%emt 0:03:41]} 15. gxf7+ {[%emt 0:01:04]} Kxf7 {[%emt 0:00:09]} 16. c3 {[%emt 0:01:25]} h5 {[%emt 0:13:16]} 17. Bc4 {[%emt 0:10:13]} hxg4 {[%emt 0:07:41]} 18. Rg1 {[%emt 0:01:08]} Rh2 {[%emt 0:17:58]} 19. Qe2 {[%emt 0:00:29]} Re8 {[%emt 0:01:02]} 20. Nf1 {[%emt 0:00:49]} Rh5 {[%emt 0:10:06]} 21. O-O-O {[%emt 0:02:07]} Qg5+ {[%emt 0:06:05]} 22. Ne3 {[%emt 0:00:55]} c6 {[%emt 0:05:51]} 23. Kb1 {[%emt 0:02:47]} Rh4 {[%emt 0:01:44]} 24. Rdf1 {[%emt 0:10:13]} Nb6 {[%emt 0:05:53]} 25. f4 {[%emt 0:01:11]} Qh5 {[%emt 0:08:00]} 26. f5 {[%emt 0:00:55]} Nbd5 {[%emt 0:01:04]} 27. Qd2 {[%emt 0:05:48]} Qg5 {[%emt 0:04:10]} 28. Rg3 {[%emt 0:02:31]} Rh3 {[%emt 0:01:09]} 29. Rff3 {[%emt 0:13:14]} Rxg3 {[%emt 0:01:04]} 30. Rxg3 {[%emt 0:00:01]} exf5 {[%emt 0:00:30]} 31. Qf2 {[%emt 0:02:16]} Ne4 {[%emt 0:01:29]} 32. Rxg4 {[%emt 0:00:12]} Qxg4 {[%emt 0:02:16]} 33. Qh2 {[%emt 0:01:53]} Nexc3+ {[%emt 0:01:31]} 34. bxc3 {[%emt 0:00:26]} Rxe3 {[%emt 0:00:03]} 35. Qc7+ {[%emt 0:00:15]} Re7 {[%emt 0:00:11]} 36. Qd6 {[%emt 0:00:09]} Qd1+ {[%emt 0:01:59]} 37. Kb2 {[%emt 0:00:02]} Qd2+ {[%emt 0:00:07]} 38. Kb3 {[%emt 0:00:07]} Qxc3+ {[%emt 0:00:09]} 39. Ka4 {[%emt 0:00:05]} b5+ {[%emt 0:00:29]} 40. Bxb5 {[%emt 0:00:08]} Nb6# {[%emt 0:00:24]} 0-1